Workbook

Sheet Raft
A1: Recommended Minimum No. of barrels to use: | B1: =IF(B9=0,"",IF('Ropes and Barrels'!D3 = "", "Specify barrel type",CEILING($B$9/'Ropes and Barrels'!$E$3,1))) -> 6
A2: Planned no of Barrels | B2: ='Ropes and Barrels'!E4 -> 15
A3: The planned barrels will be | B3: =$B$9/'Ropes and Barrels'!$E$3/'Ropes and Barrels'!E4*Data!O2 -> 0.1738854648 | C3: submerged
A4: Depth of Planned Barrels in water | B4: 331 | C4: mm
A5: =Poles!I2 -> Total Mass of poles (kg) | B5: =Poles!$I$3 -> 310.3308682
A6: =Decking!G2 -> Total Mass of Decking (kg) | B6: =Decking!$G$3 -> 97.914432
A7: ='Ropes and Barrels'!B2 -> Total Mass of Ropes (kg) | B7: ='Ropes and Barrels'!$B$3 -> 46.8
A8: Total Load Mass (kg) | B8: ='Raft Load'!$C$1 -> 630
A9: Total Raft mass (kg) | B9: =SUM(B5:B8) -> 1085.0453

Sheet Decking
A1: Decking
A2: Type | B2: Length (m) | C2: Width (m) | D2: No of Boards | E2: Density | F2: Mass (kg) | G2: Total Mass of Decking (kg)
A3: Ply | B3: 2.4 | C3: 1.4 | D3: 4 | E3: =IF(A3="","",VLOOKUP(A3,Data!$E$2:$F$4,2,FALSE)) -> 7.2853 | F3: =IF(AND(E3<>"",B3<>"",C3<>"",D3<>""),D3*C3*B3*E3,"") -> 97.914432 | G3: =SUM(F3:F15) -> 97.914432

Sheet Poles
A1: Poles
A2: Pole Age | B2: Length (m) | C2: Average Diameter (cm) | D2: No of Poles | E2: Density | F2: Diameter | G2: Mass (kg) | H2: Mass (kg) | I2: Total Mass of poles (kg)
A3: Old Poles | B3: 6 | C3: 11 to 15 | D3: 6 | E3: =IF(A3="","",VLOOKUP(A3,Data!$A$2:$B$4,2,FALSE)) -> 427.0836819 | F3: =IF(C3="","",VLOOKUP(C3,Data!$C$2:$D$9,2,FALSE)) -> 13 | G3: =IF(F3="","",((PI()*(F3/200)^2)*B3*E3)) -> 34.01267697 | H3: =IF(D3="","",D3*G3) -> 204.0760618 | I3: =SUM(H3:H30) -> 310.3308682
A4: Old Poles | B4: 4 | C4: 8 to 13 | D4: 5 | E4: =IF(A4="","",VLOOKUP(A4,Data!$A$2:$B$4,2,FALSE)) -> 427.0836819 | F4: =IF(C4="","",VLOOKUP(C4,Data!$C$2:$D$9,2,FALSE)) -> 10.5 | G4: 14.79249561 | H4: 73.96247803
A5: New Poles | B5: 2.5 | C5: 6 to 10 | D5: 4 | E5: =IF(A5="","",VLOOKUP(A5,Data!$A$2:$B$4,2,FALSE)) -> 471.6019877 | F5: =IF(C5="","",VLOOKUP(C5,Data!$C$2:$D$9,2,FALSE)) -> 8 | G5: 5.92632536 | H5: 23.70530144
A6: Old Poles | B6: 2 | C6: 6 to 10 | D6: 2 | E6: =IF(A6="","",VLOOKUP(A6,Data!$A$2:$B$4,2,FALSE)) -> 427.0836819 | F6: =IF(C6="","",VLOOKUP(C6,Data!$C$2:$D$9,2,FALSE)) -> 8 | G6: 4.293513464 | H6: 8.587026928
E7: =IF(A7="","",VLOOKUP(A7,Data!$A$2:$B$4,2,FALSE)) ->  | F7: =IF(C7="","",VLOOKUP(C7,Data!$C$2:$D$9,2,FALSE)) -> 
E8: =IF(A8="","",VLOOKUP(A8,Data!$A$2:$B$4,2,FALSE)) ->  | F8: =IF(C8="","",VLOOKUP(C8,Data!$C$2:$D$9,2,FALSE)) -> 
E9: =IF(A9="","",VLOOKUP(A9,Data!$A$2:$B$4,2,FALSE)) ->  | F9: =IF(C9="","",VLOOKUP(C9,Data!$C$2:$D$9,2,FALSE)) -> 
E10: =IF(A10="","",VLOOKUP(A10,Data!$A$2:$B$4,2,FALSE)) ->  | F10: =IF(C10="","",VLOOKUP(C10,Data!$C$2:$D$9,2,FALSE)) -> 
E11: =IF(A11="","",VLOOKUP(A11,Data!$A$2:$B$4,2,FALSE)) ->  | F11: =IF(C11="","",VLOOKUP(C11,Data!$C$2:$D$9,2,FALSE)) -> 
E12: =IF(A12="","",VLOOKUP(A12,Data!$A$2:$B$4,2,FALSE)) ->  | F12: =IF(C12="","",VLOOKUP(C12,Data!$C$2:$D$9,2,FALSE)) -> 
E13: =IF(A13="","",VLOOKUP(A13,Data!$A$2:$B$4,2,FALSE)) ->  | F13: =IF(C13="","",VLOOKUP(C13,Data!$C$2:$D$9,2,FALSE)) -> 
E14: =IF(A14="","",VLOOKUP(A14,Data!$A$2:$B$4,2,FALSE)) ->  | F14: =IF(C14="","",VLOOKUP(C14,Data!$C$2:$D$9,2,FALSE)) -> 
E15: =IF(A15="","",VLOOKUP(A15,Data!$A$2:$B$4,2,FALSE)) ->  | F15: =IF(C15="","",VLOOKUP(C15,Data!$C$2:$D$9,2,FALSE)) -> 
E16: =IF(A16="","",VLOOKUP(A16,Data!$A$2:$B$4,2,FALSE)) ->  | F16: =IF(C16="","",VLOOKUP(C16,Data!$C$2:$D$9,2,FALSE)) -> 
E17: =IF(A17="","",VLOOKUP(A17,Data!$A$2:$B$4,2,FALSE)) ->  | F17: =IF(C17="","",VLOOKUP(C17,Data!$C$2:$D$9,2,FALSE)) -> 
E18: =IF(A18="","",VLOOKUP(A18,Data!$A$2:$B$4,2,FALSE)) ->  | F18: =IF(C18="","",VLOOKUP(C18,Data!$C$2:$D$9,2,FALSE)) -> 
E19: =IF(A19="","",VLOOKUP(A19,Data!$A$2:$B$4,2,FALSE)) ->  | F19: =IF(C19="","",VLOOKUP(C19,Data!$C$2:$D$9,2,FALSE)) -> 
E20: =IF(A20="","",VLOOKUP(A20,Data!$A$2:$B$4,2,FALSE)) ->  | F20: =IF(C20="","",VLOOKUP(C20,Data!$C$2:$D$9,2,FALSE)) -> 
E23: =IF(A23="","",VLOOKUP(A23,Data!$A$2:$B$4,2,FALSE)) ->  | F23: =IF(C23="","",VLOOKUP(C23,Data!$C$2:$D$9,2,FALSE)) -> 
E24: =IF(A24="","",VLOOKUP(A24,Data!$A$2:$B$4,2,FALSE)) ->  | F24: =IF(C24="","",VLOOKUP(C24,Data!$C$2:$D$9,2,FALSE)) -> 
E25: =IF(A25="","",VLOOKUP(A25,Data!$A$2:$B$4,2,FALSE)) ->  | F25: =IF(C25="","",VLOOKUP(C25,Data!$C$2:$D$9,2,FALSE)) -> 
E26: =IF(A26="","",VLOOKUP(A26,Data!$A$2:$B$4,2,FALSE)) ->  | F26: =IF(C26="","",VLOOKUP(C26,Data!$C$2:$D$9,2,FALSE)) -> 
E27: =IF(A27="","",VLOOKUP(A27,Data!$A$2:$B$4,2,FALSE)) ->  | F27: =IF(C27="","",VLOOKUP(C27,Data!$C$2:$D$9,2,FALSE)) -> 
E28: =IF(A28="","",VLOOKUP(A28,Data!$A$2:$B$4,2,FALSE)) ->  | F28: =IF(C28="","",VLOOKUP(C28,Data!$C$2:$D$9,2,FALSE)) -> 
E29: =IF(A29="","",VLOOKUP(A29,Data!$A$2:$B$4,2,FALSE)) ->  | F29: =IF(C29="","",VLOOKUP(C29,Data!$C$2:$D$9,2,FALSE)) -> 
E30: =IF(A30="","",VLOOKUP(A30,Data!$A$2:$B$4,2,FALSE)) ->  | F30: =IF(C30="","",VLOOKUP(C30,Data!$C$2:$D$9,2,FALSE)) -> 

Sheet Ropes and Barrels
A1: Ropes | D1: Barrels
A2: No. of Ropes | B2: Total Mass of Ropes (kg) | D2: Barrel Type: | E2: Carrying capacity (kg)
A3: 78 | B3: =IF(A3="","",A3*Data!$M$2) -> 46.8 | D3: Plastic | E3: =IF(D3="","",VLOOKUP(D3,Data!$G$2:$K$4,5,FALSE)) -> 208
D4: Planned no of Barrels: | E4: 15

Sheet Raft Load
A1: Loading Criteria | B1: Total Mass of Raft Load (kg): | C1: =SUM($D$6,$D$9,$B$15,$B$18,$B$21,$B$24,$C$27) -> 630
A3: Please enter all masses (weights) in kg
A5: Crew | B5: Average mass of Crew | C5: No. of Crew | D5: Mass of Crew
B6: 80 | C6: 6 | D6: =C6*B6 -> 480
A8: Personal Kit | B8: Avg. mass of Personal Kit | D8: Mass of P.K.
B9: 10 | D9: =B9*C6 -> 60
A11: Propulsion System | B11: Mass of Propulsion System
B12: 50
A14: Shelter | B14: Mass of Shelter
B15: 10
A17: Food and Water | B17: Mass of Food and Water
B18: 30
A20: Kitchen Equipment | B20: Mass of Kitchen Equipment
B21: 30
A23: Decorations | B23: Mass of Decorations
B24: 20
A26: Extras (Description) | B26: Mass of Extras (kg) | C26: Total mass of extras
C27: =SUM(B27:B43) -> 0

Sheet Data
A1: Poles | E1: Boards | G1: Barrels | H1: Diameter(mm) | I1: Drum Capacity | J1: Drum Weight | K1: Carrying capacity (kg) | L1: length | M1: Rope (kg) | O1: Depth of barrel in the water
A2: Poles | B2: Density (kg/m3) | C2: Diam. (cm) | D2: Diameter | E2: type | F2: plane density (kg/mm2) | G2: Type | L2: 1 | M2: 0.6 | O2: 0.5
A3: New Poles | B3: 471.6019877 | C3: 1 to 5 | D3: 3.5 | E3: Chip | F3: =0.0000117717*1000000 -> 11.7717 | G3: Metal | H3: 572 | I3: 220 | J3: 21 | K3: =I3-J3 -> 199 | L3: 1.5
A4: Old Poles | B4: 427.0836819 | C4: 4 to 8 | D4: 6 | E4: Ply | F4: =0.0000072853*1000000 -> 7.2853 | G4: Plastic | H4: 572 | I4: 220 | J4: 12 | K4: =I4-J4 -> 208 | L4: 1.8
C5: 6 to 10 | D5: 8 | L5: 2
C6: 8 to 13 | D6: 10.5 | L6: 2.5
C7: 11 to 15 | D7: 13 | L7: 3
C8: 13 to 18 | D8: 15.5 | L8: 3.5
C9: 16 to 20 | D9: 18 | L9: 4
L10: 4.5
L11: 5
L12: 5.5
L13: 6
K23: 1
